[Event "*** Titled Tuesday Blitz"]
[Site "Chess.com"]
[Date "2019.01.01"]
[Round "2"]
[White "Gubajdullin"]
[Black "pedromartinez91"]
[Result "0-1"]
[WhiteElo "2435"]
[BlackElo "2422"]
[TimeControl "180+2"]
[EndTime "13:25:25 PST"]
[Termination "pedromartinez91 won on time"]

1. d4 {[%clk 0:03:01.9]} 1... Nf6 {[%clk 0:02:52.9]} 2. Bf4 {[%clk 0:03:02.6]}
2... d6 {[%clk 0:02:53.3]} 3. e3 {[%clk 0:03:02.6]} 3... g6 {[%clk 0:02:55.2]}
4. Nf3 {[%clk 0:03:02.8]} 4... Bg7 {[%clk 0:02:56.2]} 5. Be2 {[%clk 0:03:03.8]}
5... O-O {[%clk 0:02:58.1]} 6. O-O {[%clk 0:03:04.1]} 6... Nbd7 {[%clk
0:02:58.7]} 7. h3 {[%clk 0:03:01.5]} 7... Qe8 {[%clk 0:02:59.1]} 8. c3 {[%clk
0:03:01.5]} 8... e5 {[%clk 0:02:59.9]} 9. Bh2 {[%clk 0:03:02.5]} 9... Qe7 {[%clk
0:02:56.5]} 10. Na3 {[%clk 0:03:01]} 10... Re8 {[%clk 0:02:56.8]} 11. Nb5 {[%clk
0:02:57.1]} 11... e4 {[%clk 0:02:48.6]} 12. Nxc7 {[%clk 0:02:55]} 12... exf3
{[%clk 0:02:49]} 13. Bxf3 {[%clk 0:02:56.1]} 13... Nb6 {[%clk 0:02:49.6]} 14.
Nxa8 {[%clk 0:02:54.7]} 14... Nxa8 {[%clk 0:02:49.7]} 15. Qa4 {[%clk 0:02:54.1]}
15... a6 {[%clk 0:02:50.7]} 16. Qb4 {[%clk 0:02:53.1]} 16... Bf8 {[%clk
0:02:50.1]} 17. Rfe1 {[%clk 0:02:51.7]} 17... d5 {[%clk 0:02:48.9]} 18. Qxe7
{[%clk 0:02:49.4]} 18... Bxe7 {[%clk 0:02:49.4]} 19. Be5 {[%clk 0:02:48.1]}
19... Nb6 {[%clk 0:02:50.2]} 20. b3 {[%clk 0:02:47.7]} 20... Nbd7 {[%clk
0:02:51.2]} 21. Bg3 {[%clk 0:02:47.2]} 21... Nf8 {[%clk 0:02:38.4]} 22. c4
{[%clk 0:02:47.4]} 22... Be6 {[%clk 0:02:39]} 23. cxd5 {[%clk 0:02:42.6]} 23...
Bxd5 {[%clk 0:02:36.6]} 24. Bxd5 {[%clk 0:02:42.4]} 24... Nxd5 {[%clk
0:02:37.3]} 25. Rac1 {[%clk 0:02:43.1]} 25... Ba3 {[%clk 0:02:35.7]} 26. Rc4
{[%clk 0:02:41.6]} 26... f5 {[%clk 0:02:35.8]} 27. Ra4 {[%clk 0:02:25.3]} 27...
Bb4 {[%clk 0:02:33.5]} 28. Rc1 {[%clk 0:02:25.2]} 28... f4 {[%clk 0:02:29.9]}
29. Bxf4 {[%clk 0:02:23.2]} 29... Nxf4 {[%clk 0:02:30.3]} 30. exf4 {[%clk
0:02:23.4]} 30... Bd2 {[%clk 0:02:32.2]} 31. Rd1 {[%clk 0:02:23.8]} 31... Bxf4
{[%clk 0:02:33.7]} 32. d5 {[%clk 0:02:18.1]} 32... Bd6 {[%clk 0:02:34.5]} 33.
Kf1 {[%clk 0:02:13.8]} 33... Nd7 {[%clk 0:02:34.3]} 34. Rc4 {[%clk 0:02:12.9]}
34... Kf7 {[%clk 0:02:30.4]} 35. Rc2 {[%clk 0:02:09]} 35... Nc5 {[%clk
0:02:27.9]} 36. h4 {[%clk 0:02:09]} 36... Re4 {[%clk 0:02:28.3]} 37. g3 {[%clk
0:02:09.6]} 37... h5 {[%clk 0:02:23.5]} 38. Re2 {[%clk 0:02:09.9]} 38... Kf6
{[%clk 0:02:21.9]} 39. Rxe4 {[%clk 0:02:08.6]} 39... Nxe4 {[%clk 0:02:23.8]} 40.
Rd3 {[%clk 0:02:04.3]} 40... Ke5 {[%clk 0:02:24.8]} 41. Ke2 {[%clk 0:02:01.8]}
41... Nf6 {[%clk 0:02:24.6]} 42. Rf3 {[%clk 0:01:53]} 42... Nxd5 {[%clk
0:02:25.2]} 43. Rf7 {[%clk 0:01:53.4]} 43... Ne7 {[%clk 0:02:24.5]} 44. a4
{[%clk 0:01:51.9]} 44... Ke6 {[%clk 0:02:25.4]} 45. Rf8 {[%clk 0:01:52.6]} 45...
Bc5 {[%clk 0:02:22.5]} 46. Kd3 {[%clk 0:01:50.5]} 46... b6 {[%clk 0:02:23.4]}
47. Kc4 {[%clk 0:01:49.3]} 47... a5 {[%clk 0:02:24.7]} 48. Kb5 {[%clk
0:01:47.3]} 48... Nd5 {[%clk 0:02:24.3]} 49. Rf3 {[%clk 0:01:45.5]} 49... Nf6
{[%clk 0:02:20]} 50. Rf4 {[%clk 0:01:37.2]} 50... Ke5 {[%clk 0:02:19.6]} 51. f3
{[%clk 0:01:35.5]} 51... Nd5 {[%clk 0:02:19.2]} 52. Rc4 {[%clk 0:01:34.7]} 52...
Kd6 {[%clk 0:02:18.9]} 53. Ka6 {[%clk 0:01:31.7]} 53... Kc6 {[%clk 0:02:17.4]}
54. Re4 {[%clk 0:01:30.5]} 54... Nc7+ {[%clk 0:02:14.8]} 55. Ka7 {[%clk
0:01:31.2]} 55... b5+ {[%clk 0:02:15.2]} 56. Kb8 {[%clk 0:01:31.1]} 56... Bd6
{[%clk 0:02:13.7]} 57. g4 {[%clk 0:01:28.9]} 57... Ne6+ {[%clk 0:02:07.8]} 58.
Kc8 {[%clk 0:01:25.9]} 58... Nc5 {[%clk 0:02:08]} 59. axb5+ {[%clk 0:01:25]}
59... Kxb5 {[%clk 0:02:06.8]} 60. Re3 {[%clk 0:01:25.2]} 60... Kc6 {[%clk
0:02:03.8]} 61. gxh5 {[%clk 0:01:22.4]} 61... gxh5 {[%clk 0:02:05.7]} 62. Kd8
{[%clk 0:00:56.9]} 62... Kd5 {[%clk 0:01:59.1]} 63. Ke8 {[%clk 0:00:53.9]} 63...
Bf4 {[%clk 0:01:55.2]} 64. Rc3 {[%clk 0:00:52.3]} 64... Be5 {[%clk 0:01:53]} 65.
Rc4 {[%clk 0:00:38.8]} 65... Nxb3 {[%clk 0:01:53]} 66. Ra4 {[%clk 0:00:39.6]}
66... Bc3 {[%clk 0:01:51.7]} 67. Kf7 {[%clk 0:00:39.9]} 67... Nc5 {[%clk
0:01:52.6]} 68. Ra2 {[%clk 0:00:39.6]} 68... Ke5 {[%clk 0:01:47.5]} 69. Kg6
{[%clk 0:00:40.4]} 69... Kf4 {[%clk 0:01:48]} 70. Kxh5 {[%clk 0:00:40.9]} 70...
Kxf3 {[%clk 0:01:48.1]} 71. Ra3 {[%clk 0:00:40.1]} 71... Ne4 {[%clk 0:01:46]}
72. Kg6 {[%clk 0:00:40.8]} 72... Kg4 {[%clk 0:01:43.6]} 73. h5 {[%clk
0:00:41.6]} 73... Bb4 {[%clk 0:01:45.2]} 74. Ra2 {[%clk 0:00:40.3]} 74... Nc3
{[%clk 0:01:41.6]} 75. Rg2+ {[%clk 0:00:39.1]} 75... Kh3 {[%clk 0:01:42.2]} 76.
h6 {[%clk 0:00:37]} 76... Kxg2 {[%clk 0:01:43]} 77. h7 {[%clk 0:00:37.9]} 77...
Kf3 {[%clk 0:01:43.9]} 78. h8=Q {[%clk 0:00:37.7]} 78... Ke3 {[%clk 0:01:45.8]}
79. Qg8 {[%clk 0:00:37.7]} 79... Kd3 {[%clk 0:01:46.5]} 80. Qb3 {[%clk
0:00:38.3]} 80... Kd4 {[%clk 0:01:47.9]} 81. Kf5 {[%clk 0:00:38.6]} 81... Kc5
{[%clk 0:01:49]} 82. Ke5 {[%clk 0:00:37.3]} 82... a4 {[%clk 0:01:50.3]} 83. Qf7
{[%clk 0:00:37.4]} 83... a3 {[%clk 0:01:51.1]} 84. Qc7+ {[%clk 0:00:34.8]} 84...
Kb5 {[%clk 0:01:51.9]} 85. Kd4 {[%clk 0:00:33.8]} 85... a2 {[%clk 0:01:53.2]}
86. Qa7 {[%clk 0:00:30.8]} 86... Ba5 {[%clk 0:01:45.1]} 87. Qd7+ {[%clk
0:00:27]} 87... Kb4 {[%clk 0:01:43.6]} 88. Qb7+ {[%clk 0:00:20.5]} 88... Ka3
{[%clk 0:01:09.4]} 89. Qh1 {[%clk 0:00:12.8]} 89... Nb1 {[%clk 0:01:04.9]} 90.
Qh3+ {[%clk 0:00:06.8]} 90... Bc3+ {[%clk 0:01:05.7]} 91. Kd3 {[%clk 0:00:02.2]}
91... a1=Q {[%clk 0:01:04.1]} 92. Qc8 {[%clk 0:00:03.5]} 92... Kb2 {[%clk
0:00:42.4]} 0-1

[Event "*** Titled Tuesday Blitz"]
[Site "Chess.com"]
[Date "2019.01.01"]
[Round "2"]
[White "kuli4ik"]
[Black "belisarius64"]
[Result "1-0"]
[WhiteElo "2815"]
[BlackElo "2559"]
[TimeControl "180+2"]
[EndTime "13:26:49 PST"]
[Termination "kuli4ik won by checkmate"]

1. Nf3 {[%clk 0:03:01.9]} 1... c5 {[%clk 0:02:57.4]} 2. g3 {[%clk 0:03:01.7]}
2... g6 {[%clk 0:02:57.4]} 3. Bg2 {[%clk 0:03:03.6]} 3... Bg7 {[%clk 0:02:57.7]}
4. O-O {[%clk 0:03:05.5]} 4... Nc6 {[%clk 0:02:58]} 5. c3 {[%clk 0:03:04.7]}
5... e5 {[%clk 0:02:55.5]} 6. d3 {[%clk 0:02:58]} 6... Nge7 {[%clk 0:02:55.9]}
7. a3 {[%clk 0:02:58.5]} 7... a5 {[%clk 0:02:48.9]} 8. a4 {[%clk 0:02:58.2]}
8... O-O {[%clk 0:02:48.8]} 9. Na3 {[%clk 0:02:59.5]} 9... d5 {[%clk 0:02:50.1]}
10. e4 {[%clk 0:02:58.2]} 10... d4 {[%clk 0:02:43.6]} 11. Qc2 {[%clk 0:02:55.1]}
11... f6 {[%clk 0:02:34.9]} 12. Nd2 {[%clk 0:02:49.1]} 12... Be6 {[%clk
0:02:34.7]} 13. Ndc4 {[%clk 0:02:50.2]} 13... Rc8 {[%clk 0:02:07.5]} 14. Rd1
{[%clk 0:02:49.6]} 14... f5 {[%clk 0:01:56.5]} 15. exf5 {[%clk 0:02:39.2]} 15...
Nxf5 {[%clk 0:01:51.7]} 16. Re1 {[%clk 0:02:36.5]} 16... Rc7 {[%clk 0:01:43.8]}
17. Nd2 {[%clk 0:02:35.4]} 17... Bd5 {[%clk 0:01:42.3]} 18. Ne4 {[%clk
0:02:30.1]} 18... b6 {[%clk 0:01:34.6]} 19. Bg5 {[%clk 0:02:27]} 19... Qd7
{[%clk 0:01:31.1]} 20. Nb5 {[%clk 0:02:25.9]} 20... Rcc8 {[%clk 0:01:31.3]} 21.
Re2 {[%clk 0:02:25]} 21... c4 {[%clk 0:01:30.5]} 22. Rd1 {[%clk 0:02:16.8]}
22... Qe6 {[%clk 0:01:21.9]} 23. Ree1 {[%clk 0:02:04.1]} 23... h6 {[%clk
0:01:14.2]} 24. Bc1 {[%clk 0:02:03.7]} 24... cxd3 {[%clk 0:01:08.3]} 25. Qxd3
{[%clk 0:02:03.1]} 25... Bb3 {[%clk 0:01:09.3]} 26. Rd2 {[%clk 0:01:46.1]} 26...
Bxa4 {[%clk 0:01:10.1]} 27. Rde2 {[%clk 0:01:41.6]} 27... Bb3 {[%clk 0:01:05.4]}
28. Nd2 {[%clk 0:01:41]} 28... Bd5 {[%clk 0:00:58.8]} 29. Bxd5 {[%clk
0:01:37.8]} 29... Qxd5 {[%clk 0:01:00.7]} 30. Qc4 {[%clk 0:01:39.2]} 30... Nce7
{[%clk 0:00:54.5]} 31. Qxd5+ {[%clk 0:01:33.1]} 31... Nxd5 {[%clk 0:00:56.4]}
32. Ne4 {[%clk 0:01:24.8]} 32... dxc3 {[%clk 0:00:49.4]} 33. bxc3 {[%clk
0:01:24.3]} 33... Rfd8 {[%clk 0:00:47.5]} 34. Rd1 {[%clk 0:01:17.1]} 34... Nde7
{[%clk 0:00:34.2]} 35. Red2 {[%clk 0:01:18.1]} 35... Nc6 {[%clk 0:00:32.4]} 36.
Ba3 {[%clk 0:01:03.6]} 36... Bf8 {[%clk 0:00:26.2]} 37. Bxf8 {[%clk 0:00:57.6]}
37... Kxf8 {[%clk 0:00:28.1]} 38. Rd7 {[%clk 0:00:58.9]} 38... Nfe7 {[%clk
0:00:14.9]} 39. Kg2 {[%clk 0:00:51.5]} 39... Rxd7 {[%clk 0:00:16]} 40. Rxd7
{[%clk 0:00:52.2]} 40... Rd8 {[%clk 0:00:17.9]} 41. Rc7 {[%clk 0:00:51]} 41...
Rd5 {[%clk 0:00:16.9]} 42. c4 {[%clk 0:00:44.8]} 42... Rd3 {[%clk 0:00:17]} 43.
Rb7 {[%clk 0:00:42.4]} 43... Nd4 {[%clk 0:00:07.6]} 44. Rxb6 {[%clk 0:00:38.8]}
44... Nxb5 {[%clk 0:00:08.9]} 45. Rxb5 {[%clk 0:00:37.4]} 45... a4 {[%clk
0:00:08.4]} 46. Rxe5 {[%clk 0:00:38.4]} 46... a3 {[%clk 0:00:06.8]} 47. Ra5
{[%clk 0:00:39.3]} 47... Nc6 {[%clk 0:00:08]} 48. Ra4 {[%clk 0:00:39.4]} 48...
Rb3 {[%clk 0:00:08.4]} 49. Nc5 {[%clk 0:00:34.6]} 49... Rc3 {[%clk 0:00:07.9]}
50. Ne4 {[%clk 0:00:30.6]} 50... Rb3 {[%clk 0:00:08.7]} 51. c5 {[%clk
0:00:29.4]} 51... Rb4 {[%clk 0:00:07.3]} 52. Ra8+ {[%clk 0:00:27.8]} 52... Ke7
{[%clk 0:00:08.3]} 53. Nd6 {[%clk 0:00:26.4]} 53... Rb3 {[%clk 0:00:07.8]} 54.
Nc4 {[%clk 0:00:27.2]} 54... Rb5 {[%clk 0:00:08.2]} 55. Rxa3 {[%clk 0:00:25.1]}
55... Rxc5 {[%clk 0:00:09.5]} 56. Nd2 {[%clk 0:00:25.3]} 56... Kf7 {[%clk
0:00:10.1]} 57. Ra6 {[%clk 0:00:23.8]} 57... Ne7 {[%clk 0:00:11.2]} 58. Ne4
{[%clk 0:00:24.4]} 58... Re5 {[%clk 0:00:12.3]} 59. f3 {[%clk 0:00:24.3]} 59...
Re6 {[%clk 0:00:13]} 60. Ra7 {[%clk 0:00:24.4]} 60... Kf8 {[%clk 0:00:14]} 61.
h4 {[%clk 0:00:25.2]} 61... Nf5 {[%clk 0:00:15.1]} 62. Kh3 {[%clk 0:00:24.5]}
62... Rc6 {[%clk 0:00:15.6]} 63. g4 {[%clk 0:00:24]} 63... Ne7 {[%clk
0:00:15.7]} 64. Kg3 {[%clk 0:00:24.7]} 64... Re6 {[%clk 0:00:14.2]} 65. Rb7
{[%clk 0:00:20.7]} 65... Rc6 {[%clk 0:00:15]} 66. Ra7 {[%clk 0:00:19.8]} 66...
Re6 {[%clk 0:00:16.2]} 67. Nc5 {[%clk 0:00:19.5]} 67... Re1 {[%clk 0:00:13.6]}
68. Kf2 {[%clk 0:00:19.8]} 68... Rc1 {[%clk 0:00:10]} 69. Nd7+ {[%clk
0:00:20.9]} 69... Kf7 {[%clk 0:00:10.7]} 70. Ne5+ {[%clk 0:00:22.2]} 70... Ke6
{[%clk 0:00:11.5]} 71. Nd3 {[%clk 0:00:21.6]} 71... Rc2+ {[%clk 0:00:10.4]} 72.
Kg3 {[%clk 0:00:22.9]} 72... Kf6 {[%clk 0:00:10.5]} 73. Nf4 {[%clk 0:00:23.8]}
73... Rc6 {[%clk 0:00:08.5]} 74. Rb7 {[%clk 0:00:23.8]} 74... Ng8 {[%clk
0:00:04.6]} 75. Nd5+ {[%clk 0:00:23.4]} 75... Ke6 {[%clk 0:00:05]} 76. Nf4+
{[%clk 0:00:23.1]} 76... Kf6 {[%clk 0:00:06.5]} 77. h5 {[%clk 0:00:25]} 77...
gxh5 {[%clk 0:00:07.4]} 78. Nxh5+ {[%clk 0:00:26]} 78... Ke6 {[%clk 0:00:07]}
79. Rg7 {[%clk 0:00:25.5]} 79... Ne7 {[%clk 0:00:08.3]} 80. Rh7 {[%clk
0:00:26.6]} 80... Kd5 {[%clk 0:00:08.6]} 81. Nf4+ {[%clk 0:00:26.8]} 81... Kd6
{[%clk 0:00:06.4]} 82. Rxh6+ {[%clk 0:00:28.1]} 82... Kd7 {[%clk 0:00:07.8]} 83.
Rh7 {[%clk 0:00:29.4]} 83... Ke8 {[%clk 0:00:07.1]} 84. Nh5 {[%clk 0:00:29.2]}
84... Kf8 {[%clk 0:00:07.9]} 85. Rh8+ {[%clk 0:00:29.6]} 85... Kf7 {[%clk
0:00:09.1]} 86. Ra8 {[%clk 0:00:31.5]} 86... Ng6 {[%clk 0:00:09.9]} 87. Ra7+
{[%clk 0:00:31.4]} 87... Kf8 {[%clk 0:00:11.5]} 88. Ra3 {[%clk 0:00:31.5]} 88...
Ne5 {[%clk 0:00:12]} 89. f4 {[%clk 0:00:32.3]} 89... Ng6 {[%clk 0:00:12.5]} 90.
Re3 {[%clk 0:00:32.1]} 90... Rc4 {[%clk 0:00:13.2]} 91. f5 {[%clk 0:00:32.6]}
91... Ne7 {[%clk 0:00:13.4]} 92. Nf4 {[%clk 0:00:31.2]} 92... Nc6 {[%clk
0:00:13.6]} 93. Ra3 {[%clk 0:00:31.3]} 93... Kf7 {[%clk 0:00:13.7]} 94. Rd3
{[%clk 0:00:29.6]} 94... Ne5 {[%clk 0:00:14.1]} 95. Re3 {[%clk 0:00:30.4]} 95...
Nc6 {[%clk 0:00:14.2]} 96. Re6 {[%clk 0:00:25.5]} 96... Nd4 {[%clk 0:00:12.5]}
97. Rh6 {[%clk 0:00:26.2]} 97... Rc3+ {[%clk 0:00:09.8]} 98. Kh4 {[%clk
0:00:24.7]} 98... Nf3+ {[%clk 0:00:11]} 99. Kh5 {[%clk 0:00:26]} 99... Ne5
{[%clk 0:00:11.2]} 100. Rh7+ {[%clk 0:00:25.3]} 100... Kg8 {[%clk 0:00:09.5]}
101. Re7 {[%clk 0:00:23.9]} 101... Nf7 {[%clk 0:00:09]} 102. g5 {[%clk
0:00:19.6]} 102... Rg3 {[%clk 0:00:04.6]} 103. Re8+ {[%clk 0:00:18.9]} 103...
Kg7 {[%clk 0:00:03.2]} 104. f6+ {[%clk 0:00:18.2]} 104... Kh7 {[%clk 0:00:04]}
105. g6+ {[%clk 0:00:19.6]} 105... Rxg6 {[%clk 0:00:05.5]} 106. Nxg6 {[%clk
0:00:21.5]} 106... Nh6 {[%clk 0:00:05.9]} 107. Rh8# {[%clk 0:00:22.3]} 1-0

[Event "*** Titled Tuesday Blitz"]
[Site "Chess.com"]
[Date "2019.01.01"]
[Round "3"]
[White "NemtsevIgor"]
[Black "novocane"]
[Result "1-0"]
[WhiteElo "2310"]
[BlackElo "2141"]
[TimeControl "180+2"]
[EndTime "13:30:41 PST"]
[Termination "NemtsevIgor won by resignation"]

1. d4 {[%clk 0:03:01.9]} 1... Nf6 {[%clk 0:02:59.3]} 2. Bf4 {[%clk 0:03:01.1]}
2... e6 {[%clk 0:03:00.2]} 3. Nf3 {[%clk 0:03:01.6]} 3... c5 {[%clk 0:03:01.3]}
4. e3 {[%clk 0:03:02.6]} 4... b6 {[%clk 0:02:59.7]} 5. Nbd2 {[%clk 0:03:02.6]}
5... Bb7 {[%clk 0:02:58.6]} 6. Nc4 {[%clk 0:03:00.9]} 6... d5 {[%clk 0:02:49.1]}
7. Nce5 {[%clk 0:03:00.8]} 7... Be7 {[%clk 0:02:41.5]} 8. Bb5+ {[%clk
0:03:00.4]} 8... Kf8 {[%clk 0:02:27.2]} 9. Ng5 {[%clk 0:02:57.1]} 9... a6 {[%clk
0:02:11.8]} 10. Be2 {[%clk 0:02:54.6]} 10... Nc6 {[%clk 0:02:03.6]} 11. Nexf7
{[%clk 0:02:52.5]} 1-0

[Event "*** Titled Tuesday Blitz"]
[Site "Chess.com"]
[Date "2019.01.01"]
[Round "3"]
[White "Justinz"]
[Black "pedroholly22"]
[Result "0-1"]
[WhiteElo "2362"]
[BlackElo "2249"]
[TimeControl "180+2"]
[EndTime "13:31:36 PST"]
[Termination "pedroholly22 won by resignation"]

1. d4 {[%clk 0:03:01.9]} 1... Nf6 {[%clk 0:02:57.8]} 2. c4 {[%clk 0:03:01.2]}
2... e6 {[%clk 0:02:57.3]} 3. Nc3 {[%clk 0:03:02]} 3... Bb4 {[%clk 0:02:57.1]}
4. Qc2 {[%clk 0:03:02.7]} 4... O-O {[%clk 0:02:52.7]} 5. a3 {[%clk 0:03:01.9]}
5... Bxc3+ {[%clk 0:02:53.6]} 6. Qxc3 {[%clk 0:03:03.8]} 6... d6 {[%clk
0:02:52.7]} 7. Nf3 {[%clk 0:03:04.1]} 7... b6 {[%clk 0:02:50.2]} 8. Bg5 {[%clk
0:03:03.4]} 8... Bb7 {[%clk 0:02:49.1]} 9. e3 {[%clk 0:03:03.9]} 9... Nbd7
{[%clk 0:02:49.5]} 10. Be2 {[%clk 0:03:04.7]} 10... Qe8 {[%clk 0:02:49.2]} 11.
Bxf6 {[%clk 0:03:04.5]} 11... Nxf6 {[%clk 0:02:49.6]} 12. O-O {[%clk 0:03:06.4]}
12... Ne4 {[%clk 0:02:50.3]} 13. Qc2 {[%clk 0:03:05.2]} 13... f5 {[%clk
0:02:51.7]} 14. Rfd1 {[%clk 0:03:06]} 14... g5 {[%clk 0:02:51.8]} 15. b4 {[%clk
0:03:05.8]} 15... g4 {[%clk 0:02:52.3]} 16. Ne1 {[%clk 0:03:05]} 16... Rf6
{[%clk 0:02:46.7]} 17. d5 {[%clk 0:02:57.1]} 17... Rh6 {[%clk 0:02:46.1]} 18.
dxe6 {[%clk 0:02:57.3]} 18... Qh5 {[%clk 0:02:46.3]} 19. h3 {[%clk 0:02:58.1]}
19... Qg5 {[%clk 0:02:44.1]} 20. f4 {[%clk 0:02:34.3]} 20... Qh4 {[%clk
0:02:43.4]} 21. Bd3 {[%clk 0:02:22.8]} 21... gxh3 {[%clk 0:02:40.4]} 22. Bxe4
{[%clk 0:02:15.7]} 22... Bxe4 {[%clk 0:02:42.3]} 23. Qf2 {[%clk 0:02:15.8]}
23... h2+ {[%clk 0:02:40.3]} 0-1

[Event "*** Titled Tuesday Blitz"]
[Site "Chess.com"]
[Date "2019.01.01"]
[Round "3"]
[White "guillembaches"]
[Black "TheNomNomFactor"]
[Result "1/2-1/2"]
[WhiteElo "2338"]
[BlackElo "2414"]
[TimeControl "180+2"]
[EndTime "13:31:53 PST"]
[Termination "Game drawn by agreement"]

1. e4 {[%clk 0:03:01.9]} 1... e5 {[%clk 0:02:57.5]} 2. Nf3 {[%clk 0:03:02.9]}
2... Nc6 {[%clk 0:02:57]} 3. Nc3 {[%clk 0:03:04.2]} 3... Nf6 {[%clk 0:02:57.8]}
4. d4 {[%clk 0:03:05.4]} 4... exd4 {[%clk 0:02:58.9]} 5. Nxd4 {[%clk 0:03:07.3]}
5... Bb4 {[%clk 0:03:00.3]} 6. Nxc6 {[%clk 0:03:07.5]} 6... bxc6 {[%clk
0:03:02.2]} 7. Bd3 {[%clk 0:03:08.8]} 7... d5 {[%clk 0:03:03.5]} 8. Bd2 {[%clk
0:03:08.4]} 8... O-O {[%clk 0:03:01.9]} 9. O-O {[%clk 0:03:07.7]} 9... Re8
{[%clk 0:02:51.1]} 10. Nxd5 {[%clk 0:03:07.3]} 10... cxd5 {[%clk 0:02:40.7]} 11.
Bxb4 {[%clk 0:03:03]} 11... Nxe4 {[%clk 0:02:34.5]} 12. Re1 {[%clk 0:02:38.8]}
12... Rb8 {[%clk 0:02:21.9]} 13. Bxe4 {[%clk 0:02:32.5]} 13... dxe4 {[%clk
0:02:22.5]} 14. Qxd8 {[%clk 0:02:27.3]} 14... Rxd8 {[%clk 0:02:24.4]} 15. Rxe4
{[%clk 0:02:28.4]} 15... Bf5 {[%clk 0:02:25.7]} 16. Rc4 {[%clk 0:02:27.3]} 16...
Bxc2 {[%clk 0:02:25.2]} 17. Rxc2 {[%clk 0:02:18.3]} 17... Rxb4 {[%clk
0:02:25.4]} 18. Rxc7 {[%clk 0:02:18.8]} 18... Rxb2 {[%clk 0:02:25.7]} 19. Rxa7
{[%clk 0:02:19]} 19... h5 {[%clk 0:02:25.9]} 20. a4 {[%clk 0:02:12]} 20... Rdd2
{[%clk 0:02:26.6]} 21. Rf1 {[%clk 0:02:12.8]} 21... Ra2 {[%clk 0:02:25.1]} 22.
h4 {[%clk 0:02:10.8]} 22... g6 {[%clk 0:02:25.7]} 23. g3 {[%clk 0:02:11.5]}
23... Kg7 {[%clk 0:02:25.9]} 24. Kg2 {[%clk 0:02:12.5]} 24... Rd4 {[%clk
0:02:27]} 25. Ra8 {[%clk 0:02:11.7]} 25... Rdxa4 {[%clk 0:02:26.7]} 26. Rxa4
{[%clk 0:02:12.4]} 26... Rxa4 {[%clk 0:02:28.6]} 27. Rd1 {[%clk 0:02:10.5]}
1/2-1/2

[Event "*** Titled Tuesday Blitz"]
[Site "Chess.com"]
[Date "2019.01.01"]
[Round "3"]
[White "chedimir"]
[Black "Muracle"]
[Result "0-1"]
[WhiteElo "2370"]
[BlackElo "2517"]
[TimeControl "180+2"]
[EndTime "13:32:14 PST"]
[Termination "Muracle won by resignation"]

1. e4 {[%clk 0:03:01.9]} 1... g6 {[%clk 0:03:00.1]} 2. d4 {[%clk 0:03:02.1]}
2... Bg7 {[%clk 0:03:01.2]} 3. Nc3 {[%clk 0:03:02.1]} 3... a6 {[%clk 0:03:01.5]}
4. a4 {[%clk 0:03:02.2]} 4... d5 {[%clk 0:03:02.1]} 5. exd5 {[%clk 0:03:01.7]}
5... Nf6 {[%clk 0:03:02.8]} 6. Bc4 {[%clk 0:03:01.6]} 6... O-O {[%clk
0:03:03.9]} 7. Bg5 {[%clk 0:03:01.3]} 7... Nbd7 {[%clk 0:03:04.6]} 8. Nf3 {[%clk
0:03:00.8]} 8... Nb6 {[%clk 0:03:05.3]} 9. Bxf6 {[%clk 0:03:01.7]} 9... exf6
{[%clk 0:03:02.8]} 10. Bb3 {[%clk 0:03:02]} 10... Re8+ {[%clk 0:03:03.4]} 11.
Kf1 {[%clk 0:03:03]} 11... f5 {[%clk 0:02:59.7]} 12. a5 {[%clk 0:03:01.8]} 12...
Nd7 {[%clk 0:03:00.1]} 13. h4 {[%clk 0:03:02.5]} 13... Nf6 {[%clk 0:03:00.7]}
14. Qd2 {[%clk 0:02:57.4]} 14... Ne4 {[%clk 0:03:01.2]} 15. Nxe4 {[%clk
0:02:57.7]} 15... fxe4 {[%clk 0:03:02.2]} 16. Ne5 {[%clk 0:02:57.7]} 16... Bxe5
{[%clk 0:02:55.4]} 17. dxe5 {[%clk 0:02:58.3]} 17... Rxe5 {[%clk 0:02:57.3]} 18.
h5 {[%clk 0:02:53.7]} 18... Qf6 {[%clk 0:02:54.8]} 19. hxg6 {[%clk 0:02:54.2]}
19... hxg6 {[%clk 0:02:49.6]} 20. Re1 {[%clk 0:02:50.1]} 20... Bg4 {[%clk
0:02:47.1]} 21. Qh6 {[%clk 0:02:47.4]} 21... Bh5 {[%clk 0:02:31.2]} 22. Kg1
{[%clk 0:02:39.5]} 22... Rae8 {[%clk 0:02:26.4]} 23. Re3 {[%clk 0:02:39.4]}
23... Rg5 {[%clk 0:02:21.3]} 24. c3 {[%clk 0:02:36]} 24... Ree5 {[%clk 0:02:12]}
25. Rh4 {[%clk 0:02:22.4]} 25... Rxg2+ {[%clk 0:02:08.5]} 26. Kxg2 {[%clk
0:02:22.8]} 26... Qxh4 {[%clk 0:02:10]} 27. Rh3 {[%clk 0:02:11.8]} 27... Rg5+
{[%clk 0:02:08.9]} 28. Kh2 {[%clk 0:02:10.5]} 28... Qxf2+ {[%clk 0:02:09.2]} 0-1

[Event "*** Titled Tuesday Blitz"]
[Site "Chess.com"]
[Date "2019.01.01"]
[Round "3"]
[White "andresgv36"]
[Black "mc4chess"]
[Result "1-0"]
[WhiteElo "2353"]
[BlackElo "2407"]
[TimeControl "180+2"]
[EndTime "13:32:18 PST"]
[Termination "andresgv36 won by checkmate"]

1. d4 {[%clk 0:03:01.9]} 1... Nf6 {[%clk 0:02:58.8]} 2. Bf4 {[%clk 0:03:01.8]}
2... e6 {[%clk 0:02:58.7]} 3. e3 {[%clk 0:03:02.2]} 3... c5 {[%clk 0:02:58.9]}
4. Nf3 {[%clk 0:03:01.8]} 4... b6 {[%clk 0:02:56.6]} 5. Bd3 {[%clk 0:02:59.2]}
5... Bb7 {[%clk 0:02:57.7]} 6. c3 {[%clk 0:02:59]} 6... Be7 {[%clk 0:02:57.9]}
7. O-O {[%clk 0:02:58.4]} 7... Nh5 {[%clk 0:02:57.2]} 8. Nbd2 {[%clk 0:02:19.1]}
8... Nxf4 {[%clk 0:02:52.1]} 9. exf4 {[%clk 0:02:20]} 9... O-O {[%clk
0:02:53.8]} 10. Qe2 {[%clk 0:02:13.2]} 10... cxd4 {[%clk 0:02:52]} 11. Nxd4
{[%clk 0:02:09.2]} 11... Nc6 {[%clk 0:02:50.9]} 12. N2f3 {[%clk 0:02:07.1]}
12... Bf6 {[%clk 0:02:50.6]} 13. Qe3 {[%clk 0:01:43.1]} 13... Ne7 {[%clk
0:02:29.3]} 14. Ne5 {[%clk 0:01:28]} 14... d6 {[%clk 0:02:25]} 15. Ng4 {[%clk
0:01:19.5]} 15... Nd5 {[%clk 0:02:22.4]} 16. Qh3 {[%clk 0:01:20]} 16... Bxd4
{[%clk 0:02:09.7]} 17. Qxh7# {[%clk 0:01:17.1]} 1-0